Cogmind - Beta 15 *** ADVENTURER MODE // 2025.08.22 @ 21:35:57 Player: jham Result: Destroyed by 4U-0NT(R) with Subdweller Laser Performance ------------- Evolutions (0) 0 Regions Visited (2) 400 Robots Destroyed (20) 100 Value Destroyed (483) 483 Prototype IDs (1) 20 Alien Tech Used (0) 0 Bonus (0) 0 TOTAL SCORE: 1003 Bonus ------- None Cogmind --------- Core Integrity 0/250 Matter 300/300 Energy 79/100 System Corruption 2% Temperature Warm (128) Movement Core (100) Ox1 Location -10/Subcaves Parts ------- > --- POWER (1) -------- (None) > --- PROPULSION (2) --- (None) > --- UTILITY (2) ------ Small Storage Unit > --- WEAPON (2) ------- (None) > --- INVENTORY (8) ---- Scrap Shield Peak State ------------ > --- POWER ------------ Ion Engine > --- PROPULSION ------- Aluminum Leg Aluminum Leg > --- UTILITY ---------- Small Storage Unit Seismic Detector > --- WEAPON ----------- Improved Medium Laser Assault Rifle > --- INVENTORY -------- Light Nuclear Core Light Armor Plating EM Pulse Gun Improved Medium Laser Light EM Pulse Cannon [Rating: 10] Favorites ----------- Power Ion Engine Engine Ion Engine Propulsion Aluminum Leg Leg Aluminum Leg Utility Small Storage Unit Device Seismic Detector Storage Small Storage Unit Weapon Light EM Pulse Cannon Energy Gun Medium Laser Energy Cannon Light EM Pulse Cannon Ballistic Gun Assault Rifle Special Weapon Mining Laser Build | -11 -10 -10 ------- Run | Yrd Mat Sub Slots Evolved . | . . . Power . | . . . Propulsion . | . . . Utility . | . . . Weapon . | . . . Parts Attached 17 | 7 9 1 Power 1 | 1 . . Engine 1 | 1 . . Core . | . . . Reactor . | . . . Propulsion 4 | 2 2 . Treads . | . . . Leg 4 | 2 2 . Wheel . | . . . Hover . | . . . Flight . | . . . Utility 3 | 2 1 . Device 2 | 1 1 . Storage 1 | 1 . . Processor . | . . . Hackware . | . . . Protection . | . . . Artifact . | . . . Weapon 9 | 2 6 1 Energy Gun 3 | 1 1 1 Energy Cannon 3 | . 3 . Ballistic Gun 2 | 1 1 . Ballistic Cannon . | . . . Launcher . | . . . Special Weapon 1 | . 1 . Impact Weapon . | . . . Slashing Weapon . | . . . Piercing Weapon . | . . . Special Melee Weapon . | . . . Unidentified Prototypes 1 | . 1 . Parts Lost 9 | . . 9 Power 1 | . . 1 Propulsion 2 | . . 2 Utility 1 | . . 1 Weapon 5 | . . 5 Highest Loss Streak 9 | . . 9 To Critical Strikes 2 | . . 2 Average Backups 3 | . 4 3 Power . | . . . Propulsion . | . . . Utility . | . . . Weapon 3 | . 3 2 Tool/Special . | . . . Unused Backups 5 | . 4 1 Power 1 | . 1 . Propulsion . | . . . Utility 2 | . 1 1 Weapon 2 | . 2 . Tool/Special . | . . . Average Slot Usage (%) 98 | . 100 93 Engine 13 | . 14 13 Leg 27 | . 28 26 Device 13 | . 14 13 Storage 14 | . 14 14 Energy Gun 7 | . 6 10 Energy Cannon 8 | . 7 13 Ballistic Gun 8 | . 10 2 Special Weapon 2 | . 3 . Peak Build Rating 10 | 7 10 10 Average Rating 8 | 5 8 9 On Entrance 5 | . 7 8 Naked Turns . | . . . Heaviest Build 18 | 15 18 18 Greatest Support 20 | 20 20 20 Greatest Overweight (x) 1 | . . 1 Average Overweight (x) . | . . . Largest Inventory Capacity 8 | 8 8 8 Average Capacity 7 | 7 8 8 Most Carried 8 | 1 8 5 Average Carried 4 | . 4 4 Final Capacity 8 | 8 8 8 Final Carried 3 | 1 3 2 Class Distribution -------------------- 100% | Mutant Dominant Class ---------------- Mutant | -10/Materials Mutant | -10/Subcaves Resources | -11 -10 -10 ----------- Run | Yrd Mat Sub Matter Collected 548 | 241 272 35 Remotely . | . . . Salvage Created 671 | 122 453 96 Parts 36 | 9 24 3 Haulers Intercepted . | . . . Recyclers Shooed 1 | 1 . . Parts Field Recycled . | . . . Retrieved Matter . | . . . Parts Self-Destructed 8 | . . 8 Prevented 1 | . . 1 Kills | -11 -10 -10 ------- Run | Yrd Mat Sub Combat Hostiles Destroyed 12 | . 10 2 Guns 4 | . 4 . Cannons 8 | . 6 2 Classes Destroyed 7 | 2 3 2 Tunneler 4 | 3 1 . Recycler 1 | 1 . . Turret 1 | . . 1 Watcher 2 | . 2 . Swarmer 3 | . 3 . Grunt 7 | . 7 . Subdweller 2 | . . 2 Best Kill Streak 3 | 2 3 2 Combat Bots Only 3 | . 3 2 Max Kills in Single Turn 2 | 2 1 1 Gunslinging . | . . . Exploded . | . . . Melee . | . . . Uniques/NPCs Destroyed . | . . . Combat | -11 -10 -10 -------- Run | Yrd Mat Sub Hostile Shots Fired 164 | . 65 99 Missed 54 | . 16 38 Hits 110 | . 49 61 Projectile 110 | . 49 61 AOE 2 | . . 2 Critical Strikes 4 | . . 4 Damage Taken 1286 | . 418 868 Core 263 | . 64 199 Absorbed by Shields . | . . . Ignored by Resistances 377 | . 131 246 Core Remaining (%) 100 | 100 . . Volleys Fired 53 | 9 34 10 Largest 2 | 2 2 2 Hottest 156 | 70 156 112 Shots Fired 103 | 18 68 17 Gun 64 | 18 38 8 Cannon 35 | . 26 9 Launcher . | . . . Special 4 | . 4 . Kinetic 37 | 9 26 2 Thermal 40 | 9 20 11 Explosive . | . . . Electromagnetic 26 | . 22 4 Robot Hit Streak 11 | 11 11 11 Robot Miss Streak 2 | 1 2 1 Penetration Max . | . . . Secondary Targets . | . . . Autonomous 4 | . . 4 Shots Hit Robots 70 | 15 39 16 Core Hits 33 | 5 18 10 Critical Kills . | . . . Critical Parts Destroyed . | . . . Critical Strikes 2 | 1 1 . Burn 2 | 1 1 . Melee Attacks . | . . . Impact . | . . . Slashing . | . . . Piercing . | . . . Sneak Attacks . | . . . Combat Hostiles . | . . . Follow-up Attacks . | . . . Damage Inflicted 1152 | 201 678 273 Guns 616 | 201 303 112 Cannons 520 | . 359 161 Explosions . | . . . Melee . | . . . Ramming 16 | . 16 . Kinetic 294 | 91 195 8 Thermal 462 | 110 162 190 Explosive . | . . . Electromagnetic 380 | . 305 75 Impact . | . . . Slashing . | . . . Piercing . | . . . Highest Corruption 2 | . 2 2 Average Corruption 1 | . 1 2 Corruption Purged . | . . . Corruption Blocked . | . . . Effects 14 | . 9 5 Message Errors 5 | . 4 1 Matter Fused 1 | . . 1 Heat Flow Errors 1 | . 1 . Energy Discharges 3 | . 2 1 Parts Rejected 1 | . . 1 Data Loss (minor) 1 | . . 1 Data Loss (major) 2 | . 2 . Overload Shots . | . . . Overflow Damage 29 | . 29 . Projectiles 29 | . 29 . Explosions . | . . . Melee . | . . . Knockbacks . | . . . Impact . | . . . Kinetic . | . . . Secondary . | . . . Self-Inflicted Damage . | . . . Shots . | . . . Rammed . | . . . Targets Rammed 3 | . 3 . Kicked 3 | . 3 . Crushed . | . . . Highest Temperature 323 | 54 279 323 Average Temperature 69 | 21 67 133 Received Heat Transfer 706 | . 216 490 Siege Activations . | . . . Martial Activations . | . . . Shielding Activations . | . . . Robots Disrupted . | . . . Combat Hostiles . | . . . Robots Corrupted . | . . . Combat Hostiles . | . . . Parts Fried . | . . . Impact Corruptions . | . . . Robots Melted . | . . . Combat Hostiles . | . . . Parts Melted 3 | 1 2 . Heat Transferred 1422 | 407 481 534 Parts Sabotaged . | . . . Parts Stolen . | . . . Parts Stripped . | . . . Power Chain Reactions . | . . . Alert | -11 -10 -10 ------- Run | Yrd Mat Sub Maximum Alert Level . | . . . Low Security (%) 100 | 100 100 . Level 1 . | . . . Level 2 . | . . . Level 3 . | . . . Level 4 . | . . . Level 5 . | . . . High Security . | . . . Max Security . | . . . Peak Influence 80 | 10 80 . Initial 2 | . 2 . Average 12 | 1 12 . Influence Increases 523 | 20 303 200 Destroy 0b10 Robot/C 220 | . 200 20 Destroy 0b10 Robot/NC 35 | 20 15 . Destroy Leader 54 | . 54 . Successful Hack 15 | . 15 . Destroy Structure 4 | . 4 . Partial Spotted 15 | . 15 . Lose Combat Pursuer 180 | . . 180 Influence Decreases 523 | 15 308 200 Entered New Map 3 | . 3 . Time Decay 450 | 15 305 130 Lost Part 70 | . . 70 Squads Dispatched 1 | . 1 . Investigation 1 | . 1 . Extermination . | . . . Reinforcement . | . . . Assault . | . . . Garrison . | . . . Intercept . | . . . Searches Triggered . | . . . Construction Impeded . | . . . Haulers Reinforced . | . . . Active Scanning Responses . | . . . Cargo Convoy Interrupts . | . . . Stealth | -11 -10 -10 --------- Run | Yrd Mat Sub Distress Signals . | . . . Communications Jammed . | . . . Distress Signals . | . . . Times Spotted 42 | . 15 27 Peak Tracking Total 10 | . 3 10 Tactical Retreats 2 | . . 2 Traps | -11 -10 -10 ------- Run | Yrd Mat Sub Traps Triggered 4 | . 4 . Indirectly . | . . . Trap Hack Attempts . | . . . Triggered . | . . . Disarmed . | . . . Reprogrammed . | . . . Reused . | . . . Traps Extracted . | . . . Installed . | . . . Triggered . | . . . Machines | -11 -10 -10 ---------- Run | Yrd Mat Sub Machines Disabled . | . . . Max in Single Turn . | . . . Machines Repaired . | . . . Machines Dismantled . | . . . Machines Sabotaged . | . . . Overloaded Fab Kills . | . . . Hacking | -11 -10 -10 --------- Run | Yrd Mat Sub Machines Accessed 4 | . 4 . Terminals 3 | . 3 . Fabricators . | . . . Repair Stations . | . . . Recycling Units 1 | . 1 . Scanalyzers . | . . . Garrison Access . | . . . Total Hacks 6 | . 6 . Successful 5 | . 5 . Failed 1 | . 1 . Catastrophic . | . . . Database Lockouts . | . . . Manual 5 | . 5 . Terminals 5 | . 5 . Fabricators . | . . . Repair Stations . | . . . Recycling Units 1 | . 1 . Scanalyzers . | . . . Garrison Access . | . . . Terminal Hacks 4 | . 4 . Level Access Points 1 | . 1 . Locate Traps 1 | . 1 . Maintenance Status 1 | . 1 . Patrol Status 1 | . 1 . Fabricator Hacks . | . . . Repair Station Hacks . | . . . Recycling Unit Hacks 1 | . 1 . Report Inventory 1 | . 1 . Scanalyzer . | . . . Garrison Access Hacks . | . . . Unauthorized Hacks . | . . . Terminals . | . . . Fabricators . | . . . Repair Stations . | . . . Recycling Units . | . . . Scanalyzers . | . . . Garrison Access . | . . . Data Cores Recovered . | . . . Used . | . . . Hacking Detections 2 | . 2 . Full Trace Events . | . . . Feedback Events . | . . . Feedback Blocked . | . . . Robot Schematics Acquired . | . . . Robots Built . | . . . Authchips . | . . . Time . | . . . Total Robot Build Rating . | . . . Part Schematics Acquired . | . . . Parts Built . | . . . Authchips . | . . . Time . | . . . Total Part Build Rating . | . . . Parts Repaired . | . . . Time . | . . . Parts Recycled . | . . . Recycled Matter . | . . . Retrieved Matter . | . . . Retrieved Components . | . . . Parts Scanalyzed . | . . . Part Schematics Acquired . | . . . Parts Damaged . | . . . Bothacking | -11 -10 -10 ------------ Run | Yrd Mat Sub Used RIF Installer . | . . . Robots Hacked . | . . . Non-combat . | . . . Combat . | . . . Robot Hacks Applied . | . . . Relay Couplers Released . | . . . Fabnet Peak Effective % . | . . . Robots Rewired . | . . . Allies Hacked . | . . . Hacks Repelled . | . . . Allies | -11 -10 -10 -------- Run | Yrd Mat Sub Total Allies . | . . . Largest Group . | . . . Highest-Rated Group . | . . . Highest-Rated Ally . | . . . Total Orders . | . . . Ally Attacks . | . . . Total Damage . | . . . Kills . | . . . Allies Corrupted . | . . . Allies Melted . | . . . Intel | -11 -10 -10 ------- Run | Yrd Mat Sub Active Infowar (turns) 1625 | 35 1332 258 Seismic 1625 | 35 1332 258 Robot Analysis Total . | . . . Derelict Logs Recovered 1 | . . 1 Drone Launches . | . . . Drone Recoveries . | . . . Exploration | -11 -10 -10 ------------- Run | Yrd Mat Sub Turns Passed 1700 | 98 1332 270 Spaces Moved 1153 | 53 903 197 Core 11 | 5 . 6 Treads . | . . . Legs 1142 | 48 903 191 Wheels . | . . . Hover . | . . . Flight . | . . . Fastest Speed 50 | 50 120 100 Average Speed 119 | 113 120 119 Slowest Speed 120 | 120 120 120 Overloaded Moves . | . . . Propulsion Burnouts . | . . . Robots Hopped . | . . . Potential Cave-ins . | . . . Cave-ins Triggered . | . . . Exploration Rate (%) 28 | 4 73 8 Regions Visited 2 Branch Regions 1 Pre-discovered Areas . | . . . Known Exits Taken . | . . . Unknown Exits Taken 2 | 1 1 . Scrap Searched . | . . . Spaces Dug 4 | . 4 . Terrain Destroyed 4 | . 4 . Melee . | . . . Projectile 4 | . 4 . AOE . | . . . Terrain Rammed . | . . . Walls Destroyed . | . . . Machines Disabled . | . . . Actions | -11 -10 -10 --------- Run | Yrd Mat Sub Total 1362 | 69 1074 219 Wait 105 | . 99 6 Move 1151 | 52 902 197 Hop . | . . . Pick Up 12 | 1 9 2 Fast Attach 7 | 7 . . Attach 7 | . 3 4 Detach 1 | . 1 . Swap 13 | . 13 . Drop 10 | . 10 . Fire 53 | 9 34 10 Melee . | . . . Ram . | . . . Kick 3 | . 3 . Crush . | . . . Escape Stasis . | . . . Rewire . | . . . Trap . | . . . Miscellaneous . | . . . Route ------- -11/Scrapyard -10/Materials (discovered 6 exits: *Mat x3 / [*Min x2] / [*Sub]) -10/Subcaves (discovered 1 exit: [*Rec]) History --------- Turn | Location | Event 7 | -11/Scrapyard | Discovered new exit (range 16) 99 | -11/Scrapyard | Entered Materials 104 | -10/Materials | Discovered new exit (range 15) 208 | -10/Materials | Identified exit to Materials 309 | -10/Materials | Build established: Mutant 695 | -10/Materials | Discovered new exit (range 15) 1421 | -10/Materials | Discovered new exit (range 9) 1431 | -10/Materials | Entered Subcaves 1432 | -10/Subcaves | Approached by a straggling Scientist 1473 | -10/Subcaves | Discovered new exit (range 16) 1539 | -10/Subcaves | Learned Materials stockpile data 1662 | -10/Subcaves | Ambushed by swarm of Subdwellers 1663 | -10/Subcaves | Ambushed by Subdwellers from Twisted Machinery 1663 | -10/Subcaves | Ambushed by Subdwellers from Twisted Machinery 1672 | -10/Subcaves | Ambushed by Subdwellers from Twisted Machinery 1689 | -10/Subcaves | Core integrity fell below 50% 1695 | -10/Subcaves | Core integrity fell below 20% 1701 | -10/Subcaves | Destroyed by 4U-0NT(R) with Subdweller Laser Last Messages --------------- Critical hit (Destroy). Aluminum Leg destroyed. TV-1L9(R) affixes Scrap Shield Fragment to Scrap Shield. 4U-0NT(R) affixes Scrap Shield Fragment to Scrap Shield. 21-7ZK(R) destroyed. 7C-VPB(R) misfires. Ion Engine destroyed. Critical hit (Destroy). Autobeam destroyed. Seismic Detector destroyed. 7C-VPB(R) destroyed. TV-1L9(R) affixes Scrap Shield Fragment to Scrap Shield. Beam Cannon destroyed. Subatomizers dissect the Sub. Monowheel. Aluminum Leg destroyed. Critical hit (Meltdown: +220). Mining Laser destroyed. Map ----- +----------------------------------------------------+ | ?????????????????????????????????????????????????? | | ?????????????????????????????????????????????????? | | ?????????????????????????????????????????????????? | | ?????????????????????????????????????????????????? | | ?????????????????????????????????????????????????? | | ?????????????????????????????????????????????????? | | ?????????????????????????????????????????????????? | | ?????????????????????????????????????????????????? | | ?????????????????????????????????????????????????? | | ?????????????????????????????????????????????????? | | ?????###?????????????? ????????????????????????? | | ?????# ##???????????? ????????????????????????? | | ?????# ########????? ???????????????????????? | | ##??## #" """#????? ??????#????????????????? | | #### # "#????? ?????? ## ??????????????? | | % # "#?????? = ?????? ??????????????? | | % % ""##????? ????? ??????????????? | | <#????? #????# ???????????????? | | % "##?????# #??## ????????????????? | | ### %"#??????# #?# ??????????????????? | | ##?# "#????### ## #???????????????????? | | ##?#" """#????#*%& # #???????????????????? | | "########???##; ; #???????????????????? | | #######;; #???????????????????? | | [% % R!&R! *% ###?????????????????? | | # %=% RRR=%!! /@ " #?????????????????? | | # R%%*]R #???????????????? | | ###* ## R #???????????????? | | ### #####?####### #??????????????? | | #### #???????????# ; #?????????????? | | ### #???????????### " ## #????????????? | | #?????????????""" #? ####????????????? | | ## #????????????""" " ? ##???????????????? | | ?# #???????????"" " " ##????????????????? | | ?#### #???????????"""#########?????????????????? | | ????#####????????????##??????????????????????????? | | ?????????????????????????????????????????????????? | | ?????????????????????????????????????????????????? | | ?????????????????????????????????????????????????? | | ?????????????????????????????????????????????????? | | ?????????????????????????????????????????????????? | | ?????????????????????????????????????????????????? | | ?????????????????????????????????????????????????? | | ?????????????????????????????????????????????????? | | ?????????????????????????????????????????????????? | | ?????????????????????????????????????????????????? | | ?????????????????????????????????????????????????? | | ?????????????????????????????????????????????????? | | ?????????????????????????????????????????????????? | | ?????????????????????????????????????????????????? | +----------------------------------------------------+ Best States ------------- Heat Dissipation 25 Energy Generation 10 Energy Capacity 250 Matter Stores 300 Matter Capacity 300 Sight Range 16 Terrain Scan Density 10 Resistance: KI 20 Resistance: TH 20 Resistance: EX 20 Resistance: EM 20 Resistance: I 20 Resistance: S 20 Resistance: P 20 Evasion (%) 55 Offensive Hacking 10 Item Schematics ----------------- None Robot Schematics ------------------ None Fabricated ------------ Nothing Repaired ---------- Nothing Alien Tech Used ----------------- None Achievements -------------- None Challenges ------------ None Game ------ Seed AssemblyArmoredTearclaws Manual? 0 Play Time 00:26:54 Cumulative 5.7 hours Start 2025.08.20 @ 12:51:30 End 2025.08.22 @ 21:35:57 Sessions 3 Manual Loads 0 Difficulty Adventurer Special Mode None Game No. 5 Rogue 0 Adventurer 5 Explorer 0 Win Type - Total 0 Types 0/0/0/0/0/0/0/0/0/0 Lore% 1 Gallery% 9 Achievement% 9 Wizard Run 0 Options --------- Layout 1 ASCII 0 Keyboard 0 Movement Arrows Keybinds 0 Fullscreen 1 Font 32/SmallcapsGlow Map View 50x40 Zoom Use 0% Tactical HUD 0 Map Filters NONE Filters NONE Steam 1 RUN: 423720dd-a43a-4079-8102-0c4e543313f1